bitfinex/quotes_SOLUSD_20241222
["timestamp","ask_amount","ask_price","bid_price","bid_amount"]
[1734885326478,0.6642517,183.32,183.31,66.48401548]
[1734885326879,0.6642517,183.32,183.31,42.70713148]
[1734885328004,0.6642517,183.32,183.31,46.40627946]
[1734885328576,0.6642517,183.32,183.31,42.70713148]
[1734885328778,0.6642517,183.32,183.31,46.4048286]
[1734885329506,0.6642517,183.32,183.31,42.70713148]
[1734885332012,0.6642517,183.32,183.29,41.88902963]
[1734885332198,0.12549,183.31,183.26,41.88902963]
[1734885332509,0.12549,183.31,183.28,41.88902963]
[1734885333499,0.12549,183.31,183.27,41.88902963]
[1734885333721,0.12549,183.31,183.23,0.81826737]
[1734885333882,0.12549,183.31,183.22,44.26342366]
[1734885334207,0.12549,183.31,183.26,41.88902963]
[1734885334779,0.12549,183.31,183.24,41.88902963]
[1734885335488,0.12549,183.29,183.2,41.88902963]
[1734885335792,0.12549,183.29,183.18,41.88902963]
[1734885335995,0.6642517,183.32,183.26,41.88902963]
[1734885336195,0.6642517,183.32,183.27,42.7072176]
[1734885336904,0.6642517,183.32,183.28,41.88902963]
[1734885337093,0.6642517,183.32,183.29,0.81807357]
[1734885337292,0.6642517,183.32,183.28,41.88902963]
[1734885337482,0.6642517,183.32,183.28,42.7071547]
[1734885338104,0.6642517,183.32,183.29,3.69501929]
[1734885338908,0.6642517,183.32,183.25,41.88902963]
[1734885339415,0.12549,183.31,183.26,3.69719395]
[1734885339708,0.12549,183.31,183.27,42.70731039]
[1734885339913,0.12549,183.31,183.26,45.58622358]
[1734885340102,0.12549,183.31,183.26,46.40442001]
[1734885340295,0.12549,183.31,183.27,3.69719395]
[1734885340914,0.12549,183.31,183.25,42.70735707]
[1734885341115,0.12549,183.31,183.25,41.88902963]
[1734885341288,0.12549,183.31,183.26,3.70088442]
[1734885341609,20.12549,183.31,183.26,3.70088442]
[1734885341808,20.12549,183.31,183.21,42.70731869]
[1734885342011,20.12549,183.31,183.22,41.88902963]
[1734885342400,20.12549,183.31,183.23,9.6430896]
[1734885342614,0.12549,183.29,183.23,9.6430896]
[1734885343195,0.12549,183.29,183.21,41.88902963]
[1734885343712,20.0,183.3,183.21,41.88902963]
[1734885344019,20.0,183.3,183.23,41.88902963]
[1734885344203,0.12549,183.29,183.22,42.70749707]
[1734885344393,0.12549,183.29,183.22,41.88902963]
[1734885344995,0.12549,183.29,183.23,3.71736459]
[1734885345834,0.12549,183.28,183.23,3.71736459]
[1734885345993,20.0,183.26,183.23,3.71736459]
[1734885346317,20.0,183.3,183.23,41.88902963]
[1734885346697,20.6642517,183.32,183.24,42.7073733]
[1734885347104,20.6642517,183.32,183.26,41.88902963]
[1734885347808,0.6642517,183.32,183.27,42.70727416]
[1734885348013,0.6642517,183.32,183.29,41.88902963]
[1734885348206,0.6642517,183.32,183.3,0.81806257]
[1734885348514,0.6642517,183.32,183.29,41.88902963]
[1734885348700,0.6642517,183.32,183.28,41.88902963]
[1734885349019,0.6642517,183.32,183.29,3.71502339]
[1734885349410,0.6642517,183.32,183.31,41.88902963]
[1734885349801,0.6642517,183.32,183.31,45.60405302]
[1734885350618,5.17e-05,183.32,183.31,75.32114561]
[1734885350822,5.17e-05,183.32,183.31,117.21017524]
[1734885351318,0.6642517,183.5,183.34,20.0]
[1734885351524,0.6642517,183.5,183.42,41.88902963]
[1734885351919,0.6642517,183.5,183.39,41.88902963]
[1734885352106,0.6642517,183.5,183.38,41.88902963]
[1734885352307,0.6642517,183.5,183.39,0.8176672]
[1734885352707,0.12549,183.49,183.39,0.8176672]
[1734885352917,0.6642517,183.5,183.39,0.8176672]
[1734885353114,0.6642517,183.5,183.38,41.88902963]
[1734885353311,0.12549,183.47,183.37,44.21139579]
[1734885353521,0.12549,183.47,183.37,42.70669579]
[1734885354398,0.12549,183.47,183.38,41.88902963]
[1734885354807,0.12549,183.47,183.4,41.88902963]
[1734885356528,0.12549,183.47,183.39,41.88902963]
[1734885356712,0.12549,183.47,183.36,6.3157]
[1734885356713,0.12549,183.47,183.4,42.70668023]
[1734885358534,0.6642517,183.5,183.43,41.88902963]
[1734885358916,0.12549,183.49,183.43,41.88902963]
[1734885360409,0.12549,183.49,183.42,41.88902963]
[1734885361433,0.12549,183.49,183.41,42.70653428]
[1734885361633,0.12549,183.47,183.38,41.88902963]
[1734885362016,0.12549,183.43,183.36,41.88902963]
[1734885362213,0.12549,183.43,183.38,41.88902963]
[1734885362403,0.6642517,183.5,183.39,41.88902963]
[1734885362404,20.0,183.48,183.39,41.88902963]
[1734885362608,20.0,183.48,183.4,41.88902963]
[1734885363035,0.12549,183.47,183.4,41.88902963]
[1734885363234,0.12549,183.47,183.39,41.88902963]
[1734885363738,23.902374,183.47,183.35,41.88902963]
[1734885363914,0.12549,183.43,183.35,41.88902963]
[1734885364120,0.12549,183.43,183.36,0.81779911]
[1734885364428,0.12549,183.43,183.34,41.88902963]
[1734885364633,0.12549,183.43,183.33,42.70682874]
[1734885365336,0.12549,183.43,183.34,41.88902963]
[1734885366738,0.12549,183.41,183.33,42.70682874]
[1734885367541,0.12549,183.41,183.34,41.88902963]
[1734885368115,28.559174,183.41,183.3,41.88902963]
[1734885368335,0.12549,183.37,183.3,41.88902963]
[1734885368549,0.12549,183.37,183.32,41.88902963]
[1734885368855,4.6568,183.41,183.33,42.70694209]
[1734885369358,4.6568,183.46,183.38,41.88902963]
[1734885369561,8.8388517,183.5,183.41,41.88902963]
[1734885369921,0.12549,183.49,183.4,41.88902963]
[1734885370245,0.12549,183.47,183.34,26.53509433]
[1734885370452,0.12549,183.47,183.33,25.71746276]
[1734885370756,20.0,183.45,183.31,8.80239018]
[1734885370949,20.0,183.41,183.33,25.71746276]
[1734885371108,20.0,183.41,183.34,0.81787051]
[1734885371308,23.776884,183.44,183.33,25.71746276]
[1734885371511,20.0,183.41,183.33,25.71746276]
[1734885372238,20.0,183.4,183.32,26.53535623]
[1734885372421,20.0,183.4,183.3,25.71746276]
[1734885372624,20.0,183.4,183.29,26.53539266]
[1734885372844,23.776884,183.39,183.28,25.71746276]
[1734885373136,23.776884,183.39,183.27,7.2740044]
[1734885373137,23.776884,183.39,183.29,26.53559097]
[1734885373331,23.276884,183.39,183.29,26.53559097]
[1734885374218,0.12549,183.35,183.27,41.82954129]
[1734885374432,0.12549,183.35,183.3,41.82954129]
[1734885374619,4.6568,183.41,183.33,41.82954129]
[1734885374824,4.6568,183.45,183.35,41.82954129]
[1734885375018,0.6642,183.47,183.38,41.82954129]
[1734885375408,0.12549,183.46,183.39,41.82954129]
[1734885375741,0.12549,183.46,183.36,0.81779801]
[1734885376037,0.12549,183.46,183.36,42.6473393]
[1734885376222,23.902374,183.46,183.36,42.6473393]
[1734885376636,23.902374,183.46,183.37,41.82954129]
[1734885377244,23.902374,183.46,183.36,42.6473114]
[1734885377833,23.902374,183.46,183.36,0.81777011]
[1734885378131,20.12549,183.46,183.36,42.6473114]
[1734885378346,4.6568,183.49,183.4,41.82954129]
[1734885379139,0.12549,183.48,183.41,42.64710876]
[1734885379437,0.12549,183.48,183.41,0.81756747]
[1734885379738,0.6642517,183.5,183.41,42.64710876]
[1734885380038,0.12549,183.49,183.41,0.81756747]
[1734885380230,0.6642517,183.5,183.41,0.81756747]
[1734885380434,0.12549,183.48,183.37,42.64713487]
[1734885380614,0.12549,183.48,183.38,41.82954129]
[1734885380811,0.12549,183.48,183.39,42.64716391]
[1734885381131,0.12549,183.48,183.39,0.81762262]
[1734885381516,0.6642517,183.5,183.42,41.82954129]
[1734885381712,0.6642517,183.5,183.4,41.82954129]
[1734885382143,0.12549,183.49,183.4,41.82954129]
[1734885382327,0.12549,183.49,183.41,0.81762311]
[1734885383119,20.12549,183.49,183.38,41.82954129]
[1734885383329,0.12549,183.47,183.37,41.82954129]
[1734885383545,0.12549,183.47,183.38,42.64726996]
[1734885383724,0.12549,183.44,183.36,42.64724146]
[1734885383924,0.12549,183.44,183.36,0.81770017]
[1734885384140,0.12549,183.44,183.34,42.64736321]
[1734885384442,0.12549,183.44,183.35,41.82954129]
[1734885385421,28.559174,183.44,183.33,42.6473834]
[1734885385824,0.12549,183.4,183.3,42.64743535]
[1734885386422,0.6642,183.42,183.32,41.82954129]
[1734885386742,0.12549,183.41,183.33,42.64744815]
[1734885386950,0.12549,183.41,183.33,0.81790686]
[1734885387243,20.12549,183.41,183.33,0.81790686]
[1734885389142,4.6568,183.49,183.38,41.82954129]
[1734885389354,4.6568,183.49,183.4,41.82954129]
[1734885389528,4.6568,183.49,183.41,0.81756175]
[1734885390432,0.12549,183.48,183.41,0.81756175]
[1734885391019,2.38821121,183.54,183.41,42.64710304]
[1734885391626,5.321,183.55,183.44,41.82954129]
[1734885391833,5.321,183.55,183.45,0.81738673]
[1734885392137,5.321,183.55,183.45,42.64692802]
[1734885393255,5.321,183.55,183.47,41.82954129]
[1734885393432,5.321,183.55,183.47,42.64681633]
[1734885393631,4.6568,183.59,183.49,41.82954129]
[1734885393830,8.1709,183.62,183.49,42.64672097]
[1734885394240,5.321,183.63,183.49,42.64672097]
[1734885394440,13.49,183.63,183.49,46.37098548]
[1734885394665,13.49,183.63,183.49,4.54144419]
[1734885395055,13.49,183.63,183.49,0.81717968]
[1734885395244,13.49,183.63,183.49,42.64672097]
[1734885395782,20.0,183.6,183.49,42.64672097]
[1734885397074,20.0,183.6,183.49,0.81717968]
[1734885397372,20.0,183.6,183.49,42.64672097]
[1734885397670,28.1699,183.6,183.48,48.15694129]
[1734885397871,28.1699,183.6,183.48,41.82954129]
[1734885398173,28.1699,183.6,183.46,42.64667018]
[1734885398384,28.1699,183.6,183.47,41.82954129]
[1734885398674,20.0,183.59,183.46,41.82954129]
[1734885398970,20.0,183.57,183.46,41.82954129]
[1734885399155,20.0,183.55,183.47,41.82954129]
[1734885399536,10.61930237,183.58,183.47,41.82954129]
[1734885399745,20.0,183.55,183.47,41.82954129]
[1734885400155,20.0,183.55,183.48,42.64685644]
[1734885400343,20.0,183.58,183.49,41.82954129]
[1734885400547,20.0,183.58,183.48,41.82954129]
[1734885401054,20.0,183.58,183.49,42.64671679]
[1734885401264,20.0,183.58,183.48,41.82954129]
[1734885401636,8.1709,183.58,183.46,42.646695]
[1734885401851,20.0,183.55,183.45,41.82954129]
[1734885402048,20.0,183.55,183.46,42.6469293]
[1734885402253,20.0,183.55,183.47,41.82954129]
[1734885402858,0.12549,183.49,183.44,41.82954129]
[1734885403160,0.12549,183.49,183.41,41.82954129]
[1734885403770,0.12549,183.47,183.39,41.82954129]
[1734885403973,19.62549,183.48,183.41,41.82954129]
[1734885404845,19.62549,183.48,183.42,41.82954129]
[1734885405032,19.62549,183.48,183.41,41.82954129]
[1734885405433,23.776884,183.47,183.39,41.82954129]
[1734885405732,23.776884,183.48,183.36,41.82954129]
[1734885405936,0.12549,183.44,183.35,41.82954129]
[1734885406131,23.902374,183.44,183.35,41.82954129]
[1734885406361,28.559174,183.44,183.34,41.82954129]
[1734885406743,20.0,183.41,183.33,41.82954129]
[1734885407144,4.6568,183.44,183.36,41.82954129]
[1734885407361,5.321,183.49,183.41,41.82954129]
[1734885407662,20.0,183.47,183.42,41.82954129]
[1734885407847,20.0,183.47,183.4,41.82954129]
[1734885408452,20.0,183.47,183.41,41.82954129]
[1734885408767,20.0,183.47,183.39,41.82954129]
[1734885409455,20.0,183.47,183.38,41.82954129]
[1734885409660,20.0,183.45,183.36,42.64720275]
[1734885410559,0.12549,183.44,183.36,42.64720275]
[1734885411171,0.12549,183.44,183.37,41.82954129]
[1734885412156,0.12549,183.44,183.36,0.81776147]
[1734885412351,0.12549,183.44,183.36,42.64730276]
[1734885412563,0.12549,183.44,183.35,41.82954129]
[1734885413648,23.902374,183.45,183.35,41.82954129]
[1734885414547,23.902374,183.45,183.34,41.82954129]
[1734885414747,23.902374,183.45,183.35,0.81785248]
[1734885414971,23.902374,183.45,183.35,42.64739377]
[1734885415467,23.902374,183.45,183.35,0.81785248]
[1734885415954,23.902374,183.45,183.35,42.64739377]
[1734885416159,20.0,183.46,183.37,41.82954129]
[1734885416451,20.0,183.47,183.39,41.82954129]
[1734885416652,20.0,183.47,183.4,0.81756768]
[1734885417056,4.6568,183.49,183.4,0.81756768]
[1734885418666,20.0,183.47,183.4,0.81756768]
[1734885418839,0.6642517,183.5,183.4,42.64710897]
[1734885419043,20.0,183.49,183.4,42.64710897]
[1734885419671,0.12549,183.48,183.41,41.82954129]
[1734885420166,0.6642517,183.5,183.4,42.64707261]
[1734885420473,0.6642517,183.5,183.42,42.64712711]
[1734885420959,0.12549,183.49,183.42,42.64712711]
[1734885421167,0.12549,183.49,183.4,42.6471063]
[1734885421553,0.12549,183.49,183.38,42.64718032]
[1734885421751,23.902374,183.49,183.36,41.82954129]
[1734885421950,23.902374,183.49,183.35,42.64725066]
[1734885422154,23.902374,183.49,183.35,26.54119604]
[1734885422155,0.12549,183.45,183.35,26.54119604]
[1734885422783,0.12549,183.45,183.36,25.72348667]
[1734885423001,0.12549,183.45,183.36,26.54123832]
[1734885423298,20.0,183.45,183.38,25.72348667]
[1734885423449,20.0,183.45,183.37,25.72348667]
[1734885423648,20.0,183.45,183.35,25.72348667]
[1734885423876,20.0,183.43,183.35,25.72348667]
[1734885424084,20.0,183.45,183.33,2.33746162]
[1734885424085,20.0,183.41,183.33,27.24318667]
[1734885424254,8.177,183.44,183.33,42.63394041]
[1734885424580,12.8319,183.49,183.38,41.81598134]
[1734885424760,12.8319,183.49,183.38,42.63365376]
[1734885424959,12.8319,183.49,183.39,41.81598134]
[1734885425183,12.8319,183.49,183.4,0.81758372]
[1734885426181,0.6642517,183.5,183.41,41.81598134]
[1734885426358,0.6642517,183.5,183.43,41.81598134]
[1734885426559,0.6642517,183.5,183.44,42.63338726]
[1734885427478,0.12549,183.49,183.44,0.81740592]
[1734885427814,0.12549,183.49,183.42,41.81598134]
[1734885427960,0.12549,183.49,183.43,0.81741806]
[1734885428264,0.6642517,183.5,183.44,41.81598134]
[1734885428470,0.6642517,183.5,183.45,0.81735929]
[1734885429504,0.6642517,183.5,183.43,42.63338284]
[1734885429989,0.12549,183.49,183.41,0.81739923]
[1734885430287,0.12549,183.49,183.4,41.81598134]
[1734885430490,20.12549,183.49,183.4,42.63354001]
[1734885430783,20.12549,183.49,183.41,41.81598134]
[1734885431490,20.12549,183.49,183.4,41.81598134]
[1734885431711,20.12549,183.49,183.38,41.81598134]
[1734885431712,8.1752,183.48,183.38,41.81598134]
[1734885431876,20.0,183.45,183.37,41.81598134]
[1734885432380,20.0,183.45,183.38,41.81598134]
[1734885432579,20.0,183.45,183.4,41.81598134]
[1734885432792,8.1752,183.48,183.4,41.81598134]
[1734885433090,20.0,183.48,183.41,42.63358856]
[1734885433278,20.0,183.48,183.41,0.81760722]
[1734885433788,0.6642517,183.5,183.42,41.81598134]
[1734885434085,0.6642517,183.5,183.43,41.81598134]
[1734885434270,0.6642517,183.5,183.44,41.81598134]
[1734885435098,0.6642517,183.5,183.43,41.81598134]
[1734885435478,0.6642517,183.5,183.44,0.81740611]
[1734885435882,0.12549,183.49,183.41,41.81598134]
[1734885436305,0.12549,183.49,183.43,41.81598134]
[1734885436791,0.12549,183.49,183.42,42.63353647]
[1734885437517,0.6642517,183.5,183.43,41.81598134]
[1734885437893,0.6642517,183.5,183.44,0.81747368]
[1734885438110,0.6642517,183.5,183.45,41.81598134]
[1734885438390,0.6642517,183.5,183.46,41.81598134]
[1734885438703,0.6642517,183.5,183.45,41.81598134]
[1734885439016,0.6642517,183.5,183.46,42.63334211]
[1734885439413,0.6642517,183.5,183.45,41.81598134]
[1734885439592,0.6642517,183.5,183.46,42.63327074]
[1734885440097,0.6642517,183.5,183.45,41.81598134]
[1734885440307,0.6642517,183.5,183.41,41.81598134]
[1734885440616,0.6642517,183.5,183.42,41.81598134]
[1734885440918,0.6642517,183.5,183.43,3.73648808]
[1734885441319,0.6642517,183.5,183.45,41.81598134]
[1734885442221,0.6642517,183.5,183.44,42.63347791]
[1734885442399,0.6642517,183.5,183.42,41.81598134]
[1734885442710,0.6642517,183.5,183.41,42.63340378]
[1734885443019,20.0,183.49,183.42,41.81598134]
[1734885443212,20.0,183.49,183.42,45.5553017]
[1734885443391,20.0,183.49,183.42,51.53825166]
[1734885444217,20.0,183.49,183.43,3.73932036]
[1734885445029,0.12549,183.48,183.44,3.73932036]
[1734885445196,0.12549,183.46,183.44,3.73932036]
[1734885445401,8.1757,183.47,183.31,13.6377]
[1734885445402,20.0,183.44,183.32,7.38633847]
[1734885445604,20.0,183.44,183.36,25.70381501]
[1734885445807,5.321,183.48,183.38,25.70381501]
[1734885446108,0.12549,183.47,183.4,25.70381501]
[1734885446315,0.12549,183.47,183.41,0.81759617]
[1734885446513,8.8387517,183.5,183.41,26.52141118]
[1734885446720,8.8387517,183.5,183.41,0.81759617]
[1734885446903,0.12549,183.49,183.4,25.70381501]
[1734885447100,0.12549,183.49,183.41,0.81759977]
[1734885447520,0.12549,183.49,183.39,25.70381501]
[1734885447698,0.12549,183.49,183.42,3.74072378]
[1734885448016,20.0,183.47,183.42,3.74072378]
[1734885448215,0.12549,183.46,183.42,3.74072378]
[1734885448914,0.12549,183.46,183.36,26.52150969]
[1734885449115,20.0,183.45,183.37,25.70381501]
[1734885449621,0.6642517,183.5,183.35,1.5113]
[1734885449622,0.6642517,183.5,183.41,25.70381501]
[1734885450297,0.6642517,183.5,183.42,3.74344666]
[1734885451120,0.6642517,183.5,183.43,3.74344666]
[1734885451710,0.6642517,183.5,183.44,3.74344666]
[1734885452498,20.0,183.48,183.38,25.70381501]
[1734885452698,20.0,183.48,183.37,0.81755959]
[1734885452699,0.12549,183.47,183.37,0.81755959]
[1734885452997,8.30119,183.47,183.39,9.74076752]
[1734885453207,0.6642517,183.5,183.4,26.52150961]
[1734885453208,20.0,183.49,183.4,26.52150961]
[1734885453413,0.6642517,183.5,183.41,25.70381501]
[1734885453625,0.6642517,183.5,183.43,25.70381501]
[1734885453821,0.6642517,183.5,183.44,0.81740595]
[1734885454029,0.6642517,183.5,183.45,25.70381501]
[1734885454229,0.6642517,183.5,183.44,26.52122096]
[1734885454724,0.6642517,183.5,183.45,3.74507173]
[1734885455125,0.6642517,183.5,183.44,26.52122096]
[1734885456125,0.6642517,183.5,183.44,0.81740595]
[1734885456330,0.6642517,183.5,183.43,25.70381501]
[1734885456331,0.6642517,183.5,183.45,3.74419227]
[1734885457225,0.6642517,183.5,183.43,26.52129939]
[1734885457428,0.6642517,183.5,183.43,0.81748438]
[1734885457603,0.6642517,183.5,183.44,3.7458271]
[1734885458026,0.6642517,183.5,183.41,32.73863302]
[1734885458208,20.0,183.49,183.41,7.03481801]
[1734885458530,20.0,183.49,183.41,0.81741801]
[1734885458730,20.0,183.49,183.42,3.74674295]
[1734885459322,20.0,183.49,183.43,3.74674295]
[1734885459819,20.0,183.49,183.41,0.81741801]
[1734885460216,20.0,183.49,183.41,26.52123302]
[1734885460417,20.0,183.49,183.42,3.74856014]
[1734885460916,20.0,183.49,183.43,3.74856014]
[1734885461540,20.0,183.49,183.44,3.74856014]
[1734885462344,20.0,183.49,183.41,26.52123302]
[1734885463134,0.6642517,183.5,183.42,35.45184569]
[1734885463335,20.0,183.49,183.42,35.45184569]
[1734885463632,20.0,183.49,183.43,9.74803068]
[1734885464238,20.0,183.49,183.44,3.74922817]
[1734885464937,20.0,183.49,183.4,31.70544494]
[1734885465437,20.0,183.49,183.41,9.752992]
[1734885465938,20.0,183.49,183.42,3.75136207]
[1734885466514,20.0,183.47,183.42,3.75136207]
[1734885466721,20.0,183.45,183.43,3.75136207]
[1734885467332,20.0,183.45,183.38,31.70804229]
[1734885467934,20.0,183.45,183.39,9.75736169]
[1734885468642,20.0,183.45,183.4,9.75736169]
[1734885469067,20.0,183.45,183.41,9.75736169]
[1734885469622,20.0,183.45,183.42,3.75313441]
[1734885470039,8.1756,183.48,183.42,3.75313441]
[1734885470242,0.12549,183.47,183.4,6.00422728]
[1734885470732,0.12549,183.47,183.41,9.75838775]
[1734885471552,0.12549,183.47,183.42,3.75416047]
[1734885472036,20.0,183.45,183.42,3.75416047]
[1734885472236,20.0,183.45,183.39,6.00618944]
[1734885472739,0.12549,183.42,183.39,6.00618944]
[1734885472933,0.12549,183.4,183.39,6.00618944]
[1734885473249,0.12549,183.4,183.29,32.32051501]
[1734885473666,0.12549,183.38,183.27,25.70381501]
[1734885473869,23.776884,183.37,183.27,25.70381501]
[1734885474056,4.6568,183.38,183.3,3.75877072]
[1734885474573,4.6568,183.38,183.29,25.70381501]
[1734885474780,4.6568,183.38,183.28,25.70381501]
[1734885475242,4.6568,183.38,183.27,25.70381501]
[1734885475857,4.6568,183.38,183.28,3.75507411]
[1734885476269,4.6568,183.38,183.26,27.36001501]
[1734885476964,20.0,183.36,183.26,27.36001501]
[1734885477376,20.0,183.36,183.27,3.75042098]
[1734885477861,20.0,183.36,183.26,27.36001501]
[1734885479364,20.12549,183.35,183.25,26.5220934]
[1734885479556,20.0,183.36,183.28,25.70381501]
[1734885480477,0.12549,183.35,183.25,26.5220934]
[1734885480777,20.0,183.36,183.28,25.70381501]
[1734885480978,4.6568,183.38,183.29,25.70381501]
[1734885481178,20.6642,183.39,183.29,25.70381501]
[1734885481383,0.6642,183.39,183.29,25.70381501]
[1734885481584,0.6642,183.39,183.3,25.70381501]
[1734885481879,0.6642,183.39,183.29,25.70381501]
[1734885482779,20.6642,183.39,183.29,25.70381501]
[1734885483171,0.12549,183.38,183.28,25.70381501]
[1734885483378,0.12549,183.38,183.27,25.70381501]
[1734885483682,20.6642,183.39,183.3,25.70381501]
[1734885483881,4.6568,183.42,183.32,25.70381501]
[1734885484178,13.07329273,183.47,183.37,25.70381501]
[1734885484580,0.12549,183.46,183.36,25.70381501]
[1734885484785,0.12549,183.46,183.35,25.70381501]
[1734885485086,0.12549,183.46,183.36,26.52160599]
[1734885485295,4.6568,183.47,183.37,25.70381501]
[1734885485593,4.6568,183.47,183.38,26.52149676]
[1734885485790,4.6568,183.47,183.37,25.70381501]
[1734885486598,4.6568,183.47,183.38,26.52155905]
[1734885486793,20.0,183.49,183.39,25.70381501]
[1734885487502,0.12549,183.48,183.39,25.70381501]
[1734885487673,0.12549,183.48,183.37,26.52151865]
[1734885488164,20.0,183.49,183.39,25.70381501]
[1734885488479,0.6642517,183.5,183.43,25.70381501]
[1734885488691,0.6642517,183.5,183.44,0.81741291]
[1734885488858,0.6642517,183.5,183.45,25.70381501]
[1734885490382,0.6642517,183.5,183.46,25.70381501]
[1734885490684,0.6642517,183.5,183.44,25.70381501]
[1734885491001,0.6642517,183.5,183.44,26.52135907]
[1734885491303,0.6642517,183.5,183.45,25.70381501]
[1734885492900,0.6642517,183.5,183.43,25.70381501]
[1734885493761,0.6642517,183.5,183.44,25.70381501]
[1734885493964,0.6642517,183.5,183.45,25.70381501]
[1734885495387,0.6642517,183.5,183.43,26.52122482]
[1734885495586,0.6642517,183.5,183.43,25.70381501]
[1734885495800,0.6642517,183.5,183.41,25.70381501]
[1734885495977,0.12549,183.49,183.39,27.36391501]
[1734885496811,0.12549,183.49,183.41,25.70381501]
[1734885497012,0.6642517,183.5,183.41,25.70381501]
[1734885497401,20.6642517,183.5,183.42,25.70381501]
[1734885497588,20.6642517,183.5,183.41,26.52137913]
[1734885498011,0.12549,183.49,183.41,25.70381501]
[1734885498311,20.6642517,183.5,183.41,25.70381501]
[1734885498505,20.6642517,183.5,183.4,25.70381501]
[1734885498807,20.6642517,183.5,183.39,26.52150393]
[1734885498991,20.6642517,183.5,183.41,25.70381501]
[1734885499188,0.6642517,183.5,183.44,25.70381501]
[1734885499384,0.6642517,183.5,183.45,26.52120506]
[1734885499587,0.6642517,183.5,183.46,25.70381501]
[1734885500016,0.6642517,183.5,183.45,26.52120506]
[1734885501601,0.6642517,183.5,183.45,0.81739005]
[1734885501797,0.6642517,183.5,183.42,25.70381501]
[1734885502500,0.6642517,183.5,183.41,26.52119977]
[1734885502917,0.6642517,183.5,183.39,25.70381501]
[1734885503118,0.12549,183.49,183.38,28.05736105]
[1734885503319,0.12549,183.49,183.39,25.70381501]
[1734885503520,20.0,183.48,183.38,0.81754604]
[1734885504022,20.0,183.46,183.37,25.70381501]
[1734885505421,0.12549,183.48,183.38,25.70381501]
[1734885505721,0.6642,183.49,183.41,25.70381501]
[1734885505897,0.6642,183.49,183.4,25.70381501]
[1734885506219,0.6642,183.49,183.39,26.52154601]
[1734885506418,0.6642,183.49,183.38,25.70381501]
[1734885507437,0.12549,183.48,183.38,25.70381501]
[1734885507923,0.12549,183.48,183.37,26.52144948]
[1734885508218,20.0,183.47,183.37,26.52144948]
[1734885508422,20.0,183.46,183.37,26.52144948]
[1734885509922,20.0,183.46,183.37,0.81763447]
[1734885510117,20.12549,183.45,183.35,25.70381501]
[1734885510300,20.12549,183.45,183.32,25.70381501]
[1734885510502,20.12549,183.45,183.31,25.70381501]
[1734885510503,0.12549,183.42,183.31,25.70381501]
[1734885510718,0.12549,183.4,183.3,0.81787531]
[1734885510918,5.321,183.41,183.25,25.70381501]
[1734885510919,0.12549,183.37,183.25,25.70381501]
[1734885511233,0.12549,183.37,183.24,25.70381501]
[1734885511832,0.12549,183.37,183.22,6.1713]
[1734885511833,20.0,183.34,183.22,6.1713]
[1734885512008,5.321,183.31,183.19,25.70381501]
[1734885512209,23.776884,183.3,183.18,25.70381501]
[1734885512523,20.0,183.27,183.17,25.70381501]
[1734885513213,20.0,183.23,183.14,25.70381501]
[1734885513417,20.0,183.23,183.12,25.70381501]
[1734885513835,20.0,183.23,183.13,25.70381501]
[1734885514015,20.0,183.23,183.12,25.70381501]
[1734885514216,0.81889038,183.22,183.08,6.1713]
[1734885514440,5.47569038,183.22,183.11,25.70381501]
[1734885515333,0.6642,183.21,183.11,25.70381501]
[1734885515509,20.0,183.19,183.09,25.70381501]
[1734885515714,0.81889038,183.18,183.09,25.70381501]
[1734885515917,0.12549,183.17,183.05,26.52294245]
[1734885516113,0.12549,183.13,183.04,31.87511501]
[1734885516432,0.94438038,183.13,183.04,25.70381501]
[1734885516635,6.89605385,183.24,183.11,25.70381501]
[1734885516937,20.0,183.2,183.12,25.70381501]
[1734885517138,4.6568,183.24,183.14,25.70381501]
[1734885517330,4.6568,183.24,183.15,26.52253628]
[1734885517531,0.12549,183.26,183.16,25.70381501]
[1734885517718,0.94438038,183.26,183.15,25.70381501]
[1734885518230,0.81889038,183.26,183.15,41.88673604]
[1734885518941,0.12549,183.25,183.12,41.88673604]
[1734885519142,0.12549,183.25,183.13,0.81880608]
[1734885519311,0.12549,183.25,183.13,42.70554212]
[1734885519633,20.12549,183.25,183.13,42.70554212]
[1734885519817,0.81889038,183.24,183.13,42.70554212]
[1734885520220,20.0,183.2,183.11,41.88673604]
[1734885520420,0.81889038,183.19,183.11,41.88673604]